Cogmind - Beta 9.4 --- EXPLORER MODE // 2020.01.21 @ 23:06:27 Player: negentropy Result: Self-destructed Performance ------------- Evolutions (1) 500 Regions Visited (2) 400 Robots Destroyed (31) 155 Value Destroyed (754) 754 Prototype IDs (0) 0 Alien Tech Used (0) 0 Bonus (0) 0 TOTAL SCORE: 1809 Bonus ------- None Cogmind --------- Core Integrity 336/400 Matter 293/300 Energy 250/250 System Corruption 0% Temperature Cool (0) Movement Core (150) Ox2 Location -9/Materials Parts ------- > --- POWER (1) -------- Ion Engine > --- PROPULSION (4) --- Improved Hover Unit > --- UTILITY (3) ------ Sensor Array Signal Interpreter Targeting Computer > --- WEAPON (2) ------- Light Assault Rifle > --- INVENTORY (4) ---- Hardened Medium Armor Plating Datajack Datajack Mining Claw Peak State ------------ > --- POWER ------------ Ion Engine > --- PROPULSION ------- Hover Unit Hover Unit Hover Unit Improved Hover Unit > --- UTILITY ---------- Sensor Array Signal Interpreter Targeting Computer > --- WEAPON ----------- Light Assault Rifle Autogun > --- INVENTORY -------- Hardened Medium Armor Plating Datajack Mining Claw [Rating: 12] Favorites ----------- Power Ion Engine Engine Ion Engine Power Core Light Nuclear Core Propulsion Hover Unit Leg Aluminum Leg Hover Unit Hover Unit Flight Unit Flight Unit Utility Targeting Computer Device Sensor Array Storage Medium Storage Unit Processor Targeting Computer Protection Light Armor Plating Weapon Light Assault Rifle Energy Gun EM Pulse Gun Ballistic Gun Light Assault Rifle Slashing Weapon Mining Claw Build | -11 -10 -9 ------- Run | Scr Mat Mat Slots Evolved 3 | . 1 2 Power . | . . . Propulsion 2 | . . 2 Utility 1 | . 1 . Weapon . | . . . Parts Attached 38 | 6 18 14 Power 7 | 1 4 2 Engine 5 | 1 2 2 Core 2 | . 2 . Reactor . | . . . Propulsion 15 | 2 5 8 Treads . | . . . Leg 2 | 2 . . Wheel . | . . . Hover 9 | . 2 7 Flight 4 | . 3 1 Utility 6 | 2 4 . Device 1 | . 1 . Storage 1 | 1 . . Processor 2 | . 2 . Hackware . | . . . Protection 2 | 1 1 . Artifact . | . . . Weapon 10 | 1 5 4 Energy Gun 1 | . 1 . Energy Cannon . | . . . Ballistic Gun 8 | 1 3 4 Ballistic Cannon . | . . . Launcher . | . . . Special Weapon . | . . . Impact Weapon . | . . . Slashing Weapon 1 | . 1 . Piercing Weapon . | . . . Special Melee Weapon . | . . . Unidentified Prototypes . | . . . Parts Lost 6 | . 1 5 Power . | . . . Propulsion 5 | . . 5 Utility . | . . . Weapon 1 | . 1 . Highest Loss Streak 3 | . 1 3 Average Slot Usage (%) 92 | . 90 94 Engine 10 | . 10 10 Leg 1 | . 3 . Hover 23 | . 12 37 Flight 4 | . 8 . Device 8 | . 6 10 Storage 1 | . 1 . Processor 18 | . 16 20 Protection 1 | . 3 . Energy Gun 2 | . 3 . Ballistic Gun 16 | . 16 15 Slashing Weapon 2 | . 2 1 Naked Turns . | . . . Heaviest Build 19 | 17 19 10 Greatest Support 26 | 20 20 26 Greatest Overweight (x) 5 | 5 . 1 Average Overweight (x) . | . . . Largest Inventory Capacity 8 | 8 8 4 Average Capacity 4 | 7 4 4 Most Carried 7 | 7 6 4 Average Carried 3 | 5 4 2 Final Capacity 8 | 8 4 4 Final Carried 6 | 6 4 4 Class Distribution -------------------- 100% | Hacker-Mutant Dominant Class ---------------- Hacker-Mutant | -10/Materials Hacker-Mutant | -9/Materials Resources | -11 -10 -9 ----------- Run | Scr Mat Mat Matter Collected 795 | 244 192 359 Remotely . | . . . Salvage Created 1078 | . 452 626 Parts 76 | . 35 41 Haulers Intercepted 3 | . 2 1 Recyclers Shooed 2 | . 1 1 Parts Field Recycled . | . . . Retrieved Matter . | . . . Parts Self-Destructed . | . . . Prevented . | . . . Kills | -11 -10 -9 ------- Run | Scr Mat Mat Combat Hostiles Destroyed 25 | . 10 15 Guns 24 | . 9 15 AOE 1 | . 1 . Classes Destroyed 7 | . 5 2 Hauler 3 | . 2 1 Mechanic 1 | . 1 . Watcher 2 | . 1 1 Swarmer 9 | . 4 5 Grunt 11 | . 6 5 Brawler 1 | . . 1 Sentry 4 | . . 4 Best Kill Streak 5 | . 3 5 Combat Bots Only 5 | . 3 5 Max Kills in Single Turn 2 | . 1 2 Gunslinging 1 | . . 1 Exploded 1 | . 1 . Melee . | . . . Uniques/NPCs Destroyed . | . . . Combat | -11 -10 -9 -------- Run | Scr Mat Mat Damage Taken 567 | . 185 382 Core 90 | . 26 64 Absorbed by Shields . | . . . Core Remaining (%) 94 | 100 89 . Volleys Fired 88 | 1 32 55 Largest 2 | 1 2 2 Hottest 60 | 20 60 43 Shots Fired 156 | 1 62 93 Gun 156 | 1 62 93 Cannon . | . . . Launcher . | . . . Special . | . . . Kinetic 134 | 1 40 93 Thermal . | . . . Explosive . | . . . Electromagnetic 22 | . 22 . Robot Hit Streak 46 | 1 15 46 Robot Miss Streak 2 | . 2 2 Penetration Max . | . . . Secondary Targets 3 | . 1 2 Max Gunslinging Chain 1 | . 1 1 Shots Hit Robots 135 | 1 50 84 Core Hits 57 | . 27 30 Critical Hits 1 | . . 1 Critical Kills . | . . . Critical Parts Destroyed 1 | . . 1 Melee Attacks 1 | . 1 . Impact . | . . . Slashing 1 | . 1 . Piercing . | . . . Sneak Attacks . | . . . Combat Hostiles . | . . . Follow-up Attacks . | . . . Damage Inflicted 1512 | 10 556 946 Guns 1430 | 10 492 928 Cannons . | . . . Explosions 40 | . 40 . Melee 24 | . 24 . Ramming 18 | . . 18 Kinetic 1198 | 10 260 928 Thermal 40 | . 40 . Explosive . | . . . Electromagnetic 232 | . 232 . Impact . | . . . Slashing 24 | . 24 . Piercing . | . . . Highest Corruption . | . . . Average Corruption . | . . . Corruption Purged . | . . . Overload Shots . | . . . Overflow Damage 8 | . 8 . Projectiles . | . . . Explosions 8 | . 8 . Melee . | . . . Knockbacks . | . . . Impact . | . . . Kinetic . | . . . Secondary . | . . . Self-Inflicted Damage 29 | . 20 9 Shots 1 | . 1 . Rammed 1 | . . 1 Targets Rammed 1 | . . 1 Kicked . | . . . Crushed . | . . . Highest Temperature 108 | 3 108 26 Average Temperature 20 | 3 32 6 Received Heat Transfer 252 | . 99 153 Siege Activations . | . . . Robots Corrupted . | . . . Combat Hostiles . | . . . Parts Fried . | . . . Impact Corruptions . | . . . Robots Melted . | . . . Combat Hostiles . | . . . Parts Melted . | . . . Heat Transferred . | . . . Parts Sabotaged . | . . . Parts Stolen . | . . . Parts Stripped . | . . . Power Chain Reactions 1 | . 1 . Missiles Intercepted . | . . . Alert | -11 -10 -9 ------- Run | Scr Mat Mat Peak Influence 393 | . 265 393 Average Influence 93 | . 79 132 Maximum Alert Level 1 | . 1 1 Low Security (%) 83 | 100 85 77 Level 1 16 | . 14 22 Level 2 . | . . . Level 3 . | . . . Level 4 . | . . . Level 5 . | . . . High Security . | . . . Max Security . | . . . Squads Dispatched 1 | . . 1 Investigation . | . . . Extermination . | . . . Reinforcement 1 | . . 1 Assault . | . . . Garrison . | . . . Intercept . | . . . Construction Impeded . | . . . Haulers Reinforced . | . . . Stealth | -11 -10 -9 --------- Run | Scr Mat Mat Distress Signals 4 | . 2 2 Communications Jammed . | . . . Distress Signals . | . . . Times Spotted 41 | . 20 21 Peak Tracking Total 4 | . 3 4 Tactical Retreats 1 | . 1 . Traps | -11 -10 -9 ------- Run | Scr Mat Mat Traps Triggered 4 | . 1 3 Indirectly . | . . . Trap Hack Attempts . | . . . Triggered . | . . . Disarmed . | . . . Reprogrammed . | . . . Reused . | . . . Traps Extracted . | . . . Installed . | . . . Triggered . | . . . Machines | -11 -10 -9 ---------- Run | Scr Mat Mat Machines Disabled 1 | . 1 . Max in Single Turn 1 | . 1 . Machines Sabotaged . | . . . Garrisons Compromised . | . . . Overloaded Fab Kills . | . . . Fab Network Shutdowns . | . . . Hacking | -11 -10 -9 --------- Run | Scr Mat Mat Machines Accessed . | . . . Terminals . | . . . Fabricators . | . . . Repair Stations . | . . . Recycling Units . | . . . Scanalyzers . | . . . Garrison Access . | . . . Total Hacks . | . . . Successful . | . . . Failed . | . . . Catastrophic . | . . . Database Lockouts . | . . . Manual . | . . . Terminals . | . . . Fabricators . | . . . Repair Stations . | . . . Recycling Units . | . . . Scanalyzers . | . . . Garrison Access . | . . . Terminal Hacks . | . . . Fabricator Hacks . | . . . Repair Station Hacks . | . . . Recycling Unit Hacks . | . . . Scanalyzer . | . . . Garrison Access Hacks . | . . . Unauthorized Hacks . | . . . Terminals . | . . . Fabricators . | . . . Repair Stations . | . . . Recycling Units . | . . . Scanalyzers . | . . . Garrison Access . | . . . Data Cores Recovered . | . . . Used . | . . . Hacking Detections . | . . . Full Trace Events . | . . . Feedback Events . | . . . Feedback Blocked . | . . . Robot Schematics Acquired . | . . . Robots Built . | . . . Matter . | . . . Time . | . . . Total Robot Build Rating . | . . . Part Schematics Acquired . | . . . Parts Built . | . . . Matter . | . . . Time . | . . . Total Part Build Rating . | . . . Parts Repaired . | . . . Time . | . . . Parts Recycled . | . . . Recycled Matter . | . . . Retrieved Matter . | . . . Retrieved Components . | . . . Parts Scanalyzed . | . . . Part Schematics Acquired . | . . . Parts Damaged . | . . . Bothacking | -11 -10 -9 ------------ Run | Scr Mat Mat Used RIF Installer . | . . . Robots Hacked . | . . . Non-combat . | . . . Combat . | . . . Robot Hacks Applied . | . . . Relay Couplers Released . | . . . Robots Rewired . | . . . Allies Hacked . | . . . Hacks Repelled . | . . . Allies | -11 -10 -9 -------- Run | Scr Mat Mat Total Allies . | . . . Largest Group . | . . . Highest-Rated Group . | . . . Highest-Rated Ally . | . . . Total Orders . | . . . Ally Attacks . | . . . Total Damage . | . . . Kills . | . . . Allies Corrupted . | . . . Allies Melted . | . . . Intel | -11 -10 -9 ------- Run | Scr Mat Mat Robot Analysis Total . | . . . Derelict Logs Recovered . | . . . Drone Launches . | . . . Drone Recoveries . | . . . Exploration | -11 -10 -9 ------------- Run | Scr Mat Mat Turns Passed 1549 | 164 748 637 Spaces Moved 1660 | 111 893 656 Core 25 | 25 . . Treads . | . . . Legs 145 | 86 59 . Wheels . | . . . Hover 1195 | . 539 656 Flight 295 | . 295 . Fastest Speed 37 | 50 37 48 Average Speed 57 | 131 53 49 Slowest Speed 300 | 300 120 120 Overloaded Moves . | . . . Propulsion Burnouts . | . . . Robots Hopped 1 | . 1 . Cave-ins Triggered . | . . . Exploration Rate (%) 53 | 7 98 55 Regions Visited 2 Branch Regions . Pre-discovered Areas . | . . . Known Exits Taken 2 | 1 1 . Unknown Exits Taken . | . . . Scrap Searched . | . . . Spaces Dug . | . . . Terrain Destroyed 4 | . 4 . Melee . | . . . Projectile . | . . . AOE 4 | . 4 . Actions | -11 -10 -9 --------- Run | Scr Mat Mat Total 2116 | 127 1101 888 Wait 290 | . 138 152 Move 1656 | 110 890 656 Hop 1 | . 1 . Pick Up 26 | 10 9 7 Fast Attach 16 | 2 7 7 Attach 15 | 4 6 5 Detach . | . . . Swap 7 | . 5 2 Drop 15 | . 12 3 Fire 88 | 1 32 55 Melee 1 | . 1 . Ram 1 | . . 1 Kick . | . . . Crush . | . . . Escape Stasis . | . . . Rewire . | . . . Trap . | . . . Miscellaneous . | . . . Route ------- -11/Scrapyard -10/Materials (discovered 5 exits: *Mat x3 / *Min x2) -9/Materials (discovered 2 exits: *Mat / *Min) History --------- Turn | Location | Event 17 | -11/Scrapyard | Identified exit to Materials 17 | -11/Scrapyard | Discovered exit to Materials (range 16) 165 | -11/Scrapyard | Entered Materials 165 | -10/Materials | Evolved 1 slot: Utility x1 303 | -10/Materials | Build established: Hacker-Mutant 402 | -10/Materials | Identified exit to Materials 402 | -10/Materials | Discovered exit to Materials (range 14) 571 | -10/Materials | Identified exit to Mines 571 | -10/Materials | Discovered exit to Mines (range 11) 588 | -10/Materials | Discovered exit to Materials (range 16) 673 | -10/Materials | Discovered exit to Materials (range 14) 750 | -10/Materials | Discovered exit to Mines (range 14) 913 | -10/Materials | Entered another Materials area 913 | -9/Materials | Evolved 2 slots: Propulsion x2 1213 | -9/Materials | Identified exit to Materials 1213 | -9/Materials | Discovered exit to Materials (range 4) 1234 | -9/Materials | Identified exit to Mines 1234 | -9/Materials | Discovered exit to Mines (range 15) 1550 | -9/Materials | Self-destructed Last Messages --------------- 01424_ Acquired Autogun. 01425_ Acquired Hover Unit. 01434_ U-05 Engineer builds a Wall. 01440_ Acquired 14 matter. 01442_ Acquired 48 matter. 01476_ Dropped Autogun. 01478_ Acquired Datajack. 01511_ S-10 Pest destroyed. 01512_ Acquired 3 matter. 01514_ Acquired 1 matter. 01519_ Hover Unit destroyed. 01521_ Acquired 1 matter. 01522_ S-10 Pest destroyed. 01523_ Acquired 1 matter. 01524_ S-10 Pest destroyed. 01525_ Acquired 1 matter. 01527_ Acquired Flight Unit. 01529_ Dropped Flight Unit. 01535_ W-16 Scout distress signal alerts nearby ally. 01545_ Hover Unit destroyed. Map ----- +----------------------------------------------------+ | ?????? ? ???????????????????# #?# | | ?????? ????????????######## #?# // | | ???????? !|| ???????????# * # #?# / [ | | ????????""" !| ???????????# # #?#####+## | | ????????""" !| ???????????# # ##### | | ??????? """ #####??????# + T | | ???? ######## # "" | | ???? + # | | ???? ############### ##### | | ?????#####+######## #?????????????# #??####+## | | ??????????????????# ############### #??# | | ??????????????????# #??# | | ??????????????????# #??# | | ??????????????????# #??# """ | | ??????????????????##=##### ######## #??# """" | | ???????????????????#%#????? #??????# #??# """" | | ???????????????????#*#?????? #??????# #??# """" | | ???????????????????# #???????#??????# #??# """ | | ???????????????????# #???????#??????# #??# | | ???????????????????#=#?????? #??????# #??####### | | ???????????????????#%#?????? #??????# #????????? | | ??????????????????##+#####? #??????? ?????????? | | ??????????????????#%*= #? #???????????????????? | | ??????????????????# """ # #???????????????????? | | ??????????????????# "Y" t# #???????????????????? | | ??????????????????# @ +???????????????????? | | ??????????????????# # #???????????????????? | | ??????????????????# # Y #???????????????????? | | ??????????????????########? #???????????????????? | | ??????????????????????????? #??????????????????? | | ???????????????????????????? ?????????????????? | | ???????????????????????????? ????????????????? | | ????????????????????????????? w ???????????????? | | ????????????????????????????? #####??????????????? | | ??????????????????????????????#??????????????????? | | ?????????????????????????????????????????????????? | | ?????????????????????????????????????????????????? | | ?????????????????????????????????????????????????? | | ?????????????????????????????????????????????????? | | ?????????????????????????????????????????????????? | | ?????????????????????????????????????????????????? | | ?????????????????????????????????????????????????? | | ?????????????????????????????????????????????????? | | ?????????????????????????????????????????????????? | | ?????????????????????????????????????????????????? | | ?????????????????????????????????????????????????? | | ?????????????????????????????????????????????????? | | ?????????????????????????????????????????????????? | | | | | +----------------------------------------------------+ Best States ------------- Heat Dissipation 28 Energy Generation 14 Energy Capacity 250 Matter Stores 300 Matter Capacity 300 Sight Range 16 Robot Scan Range 10 Terrain Scan Density 10 Armor Coverage 150 Resistance: KI 35 Resistance: TH 35 Resistance: EX 35 Resistance: EM 35 Resistance: I 35 Resistance: S 35 Resistance: P 35 Propulsion Shielding 33 Evasion (%) 62 Targeting Accuracy 5 Offensive Hacking 20 Item Schematics ----------------- None Robot Schematics ------------------ None Fabricated ------------ Nothing Alien Tech Used ----------------- None Achievements -------------- None Challenges ------------ None Game ------ Seed BackupFusionMatrix Manual? 0 Play Time 00:20:48 Cumulative 10.5 hours Start 2020.01.21 @ 18:25:04 End 2020.01.21 @ 23:06:27 Sessions 3 Manual Loads 0 Difficulty Explorer Special Mode None Game No. 36 Rogue 27 Adventurer 0 Explorer 9 Win Type - Total 0 Types 0/0/0/0/0/0/0 Lore% 20 Gallery% 17 Achievement% 16 Wizard Run 0 Options --------- ASCII 0 Keyboard 0 Movement Arrows Keybinds 0 Fullscreen 2 Font 12/Terminus Map View 83x54 Tactical HUD 1 Map Filters NONE Filters NONE Steam 1 RUN: d7480124-7d3f-4412-985e-55715f2e4f0c